bitfinex/quotes_SOLUSD_20250604
["timestamp","ask_amount","ask_price","bid_price","bid_amount"]
[1749075077383,14.69383341,154.31,154.3,55.90964886]
[1749075078084,14.69383341,154.32,154.3,55.90964886]
[1749075080712,1.6128,154.34,154.31,18.64964886]
[1749075080880,1.6128,154.34,154.32,58.66964886]
[1749075080881,14.69383341,154.33,154.32,58.66964886]
[1749075081083,14.69383341,154.33,154.32,69.16964886]
[1749075083702,1.5522,154.38,154.33,18.64964886]
[1749075084010,1.6627,154.41,154.35,18.64964886]
[1749075084221,1.6627,154.41,154.36,40.02]
[1749075084222,14.69383341,154.38,154.36,40.02]
[1749075084428,1.6627,154.41,154.37,29.14964886]
[1749075084429,14.69383341,154.39,154.37,29.14964886]
[1749075084781,14.69383341,154.38,154.37,29.14964886]
[1749075086209,14.69383341,154.38,154.37,10.5]
[1749075086594,14.69383341,154.38,154.37,50.52]
[1749075087490,1.6627,154.41,154.37,50.52]
[1749075087703,14.69383341,154.38,154.37,50.52]
[1749075088883,1.6627,154.41,154.37,50.52]
[1749075089095,14.69383341,154.38,154.37,50.52]
[1749075091512,14.69383341,154.38,154.37,10.5]
[1749075091691,22.62343341,154.38,154.37,10.5]
[1749075091890,22.62343341,154.38,154.37,50.52]
[1749075100996,22.62343341,154.38,154.37,50.5]
[1749075101209,22.62343341,154.38,154.3,0.28432314]
[1749075101394,14.69383341,154.31,154.3,0.28432314]
[1749075102394,14.69383341,154.31,154.3,58.933972]
[1749075104019,14.69383341,154.32,154.31,18.64964886]
[1749075106519,14.69383341,154.32,154.3,47.76]
[1749075106830,0.14216157,154.37,154.3,47.76]
[1749075107001,0.14216157,154.37,154.31,40.0]
[1749075107200,14.69383341,154.32,154.3,47.76]
[1749075107425,33.9296,154.38,154.31,40.0]
[1749075107721,14.69383341,154.32,154.31,40.0]
[1749075111612,14.69383341,154.33,154.32,18.64964886]
[1749075118328,14.69383341,154.33,154.31,18.933972]
[1749075118625,14.69383341,154.33,154.32,58.64964886]
[1749075119631,14.69383341,154.34,154.33,18.64964886]
[1749075119832,14.69383341,154.35,154.33,18.64964886]
[1749075120719,14.69383341,154.34,154.32,40.0]
[1749075120903,14.69383341,154.33,154.32,58.64964886]
[1749075122413,14.69383341,154.33,154.32,69.14964886]
[1749075123528,14.69383341,154.34,154.32,69.14964886]
[1749075124222,1.5601,154.38,154.33,18.933972]
[1749075124223,14.69383341,154.35,154.33,18.933972]
[1749075124428,1.5601,154.38,154.33,18.933972]
[1749075124637,14.69383341,154.35,154.33,18.933972]
[1749075125518,14.69383341,154.36,154.33,18.933972]
[1749075127337,8.0135,154.42,154.33,33.62780541]
[1749075127540,1.534,154.42,154.38,18.64964886]
[1749075127739,14.69383341,154.4,154.39,50.5]
[1749075129726,1.534,154.42,154.4,18.64964886]
[1749075129928,14.69383341,154.41,154.4,18.64964886]
[1749075130747,14.69383341,154.41,154.39,50.5]
[1749075130929,14.69383341,154.4,154.39,10.5]
[1749075131253,14.69383341,154.4,154.39,50.48]
[1749075132127,14.69383341,154.4,154.39,69.12964886]
[1749075132537,14.69383341,154.4,154.39,69.413972]
[1749075132742,14.69383341,154.41,154.4,18.64964886]
[1749075133419,14.69383341,154.42,154.41,0.28432314]
[1749075135357,14.69383341,154.42,154.4,18.64964886]
[1749075135542,14.69383341,154.41,154.4,18.64964886]
[1749075135744,14.69383341,154.41,154.4,39.98]
[1749075136553,14.69383341,154.41,154.39,10.5]
[1749075136735,14.69383341,154.4,154.38,37.24]
[1749075136971,14.69383341,154.39,154.38,37.24]
[1749075137242,14.69383341,154.39,154.38,47.72]
[1749075137442,14.69383341,154.39,154.38,87.7]
[1749075137645,14.69383341,154.39,154.38,47.72]
[1749075137957,14.69383341,154.39,154.38,87.7]
[1749075144433,14.69383341,154.39,154.38,50.46]
[1749075145679,14.69383341,154.39,154.38,10.48]
[1749075145841,14.83599498,154.39,154.31,18.64964886]
[1749075146169,14.69383341,154.32,154.31,18.64964886]
[1749075146462,14.69383341,154.32,154.3,26.0]
[1749075146766,14.69383341,154.31,154.3,44.64964886]
[1749075147055,1.6445,154.36,154.31,18.64964886]
[1749075147056,14.69383341,154.33,154.31,18.64964886]
[1749075149062,14.69383341,154.34,154.32,0.28432314]
[1749075149228,14.69383341,154.34,154.33,58.62964886]
[1749075149430,14.69383341,154.34,154.33,58.913972]
[1749075149840,14.69383341,154.35,154.34,18.64964886]
[1749075150957,14.69383341,154.35,154.34,18.933972]
[1749075151258,14.69383341,154.36,154.34,18.933972]
[1749075151480,14.69383341,154.38,154.35,0.28432314]
[1749075151764,14.69383341,154.38,154.37,18.64964886]
[1749075153661,14.69383341,154.38,154.37,18.933972]
[1749075154050,14.69383341,154.38,154.37,66.673972]
[1749075154536,14.69383341,154.39,154.38,0.28432314]
[1749075154735,14.69383341,154.4,154.38,0.28432314]
[1749075154962,14.69383341,154.39,154.38,0.28432314]
[1749075157146,14.69383341,154.4,154.38,0.28432314]
[1749075157459,14.69383341,154.41,154.38,0.28432314]
[1749075157646,14.69383341,154.41,154.4,0.28432314]
[1749075157843,14.69383341,154.42,154.41,18.64964886]
[1749075158164,14.69383341,154.42,154.41,29.12964886]
[1749075160650,14.69383341,154.42,154.41,29.413972]
[1749075160849,14.69383341,154.43,154.41,29.12964886]
[1749075163271,1.6633,154.48,154.42,0.28432314]
[1749075163479,14.69383341,154.43,154.42,0.28432314]
[1749075166476,14.69383341,154.43,154.42,39.96]
[1749075167373,16.34503341,154.43,154.42,39.96]
[1749075168165,16.34503341,154.43,154.41,10.48]
[1749075168383,1.6512,154.43,154.42,39.96]
[1749075168567,16.34503341,154.43,154.42,39.96]
[1749075168761,16.34503341,154.43,154.41,10.48]
[1749075168964,16.34503341,154.43,154.42,39.96]
[1749075171157,1.6512,154.43,154.42,39.96]
[1749075171354,16.34503341,154.43,154.42,39.96]
[1749075178396,16.34503341,154.43,154.42,39.94]
[1749075178593,16.34503341,154.43,154.42,10.48]
[1749075178594,31.03886682,154.43,154.42,10.48]
[1749075178772,0.28432314,154.42,154.29,21.37233341]
[1749075179100,0.28432314,154.42,154.32,44.933972]
[1749075179101,14.69383341,154.33,154.32,44.933972]
[1749075179588,14.69383341,154.33,154.32,39.94]
[1749075180395,14.69383341,154.33,154.29,18.79181043]
[1749075180688,1.6178,154.37,154.31,18.64964886]
[1749075181915,14.69383341,154.32,154.31,18.64964886]
[1749075182187,1.6178,154.37,154.32,0.14216157]
[1749075182395,14.69383341,154.34,154.33,26.0]
[1749075182699,14.69383341,154.34,154.33,84.60964886]
[1749075182988,1.6178,154.37,154.34,18.64964886]
[1749075183169,14.69383341,154.37,154.34,18.64964886]
[1749075183370,14.69383341,154.37,154.35,0.28432314]
[1749075183561,14.69383341,154.38,154.37,44.64964886]
[1749075183765,14.69383341,154.39,154.37,84.58964886]
[1749075183964,14.69383341,154.38,154.37,84.58964886]
[1749075184200,14.69383341,154.38,154.37,132.30964886]
[1749075186974,14.69383341,154.38,154.37,132.593972]
[1749075187173,14.69383341,154.39,154.37,132.593972]
[1749075187376,14.69383341,154.41,154.38,0.28432314]
[1749075188072,14.69383341,154.42,154.38,0.56864628]
[1749075188662,1.5827,154.45,154.38,0.56864628]
[1749075188663,14.69383341,154.41,154.38,0.56864628]
[1749075188887,14.69383341,154.42,154.38,15.26247969]
[1749075189697,14.69383341,154.43,154.39,18.64964886]
[1749075189868,14.69383341,154.43,154.39,33.34348227]
[1749075191381,14.69383341,154.43,154.39,18.64964886]
[1749075191579,14.69383341,154.41,154.39,18.64964886]
[1749075191978,14.69383341,154.42,154.39,18.64964886]
[1749075192183,14.69383341,154.41,154.39,18.64964886]
[1749075192491,14.69383341,154.4,154.37,73.72]
[1749075192673,1.5827,154.45,154.38,58.873972]
[1749075192874,14.69383341,154.39,154.38,18.79181043]
[1749075193082,14.69383341,154.39,154.38,58.873972]
[1749075195318,14.69383341,154.39,154.37,73.72]
[1749075195489,6.5782,154.44,154.38,39.94]
[1749075195690,6.5782,154.44,154.39,39.94]
[1749075196100,6.5782,154.44,154.37,73.72]
[1749075196301,6.5782,154.44,154.38,58.873972]
[1749075196912,14.69383341,154.4,154.38,58.873972]
[1749075197277,14.69383341,154.39,154.38,58.873972]
[1749075199896,14.69383341,154.39,154.38,39.94]
[1749075201108,14.69383341,154.39,154.37,47.72]
[1749075201280,14.69383341,154.4,154.37,47.72]
[1749075201281,14.69383341,154.4,154.38,39.94]
[1749075201481,14.69383341,154.39,154.38,39.94]
[1749075202823,6.5782,154.44,154.38,39.94]
[1749075203104,14.69383341,154.42,154.39,18.79181043]
[1749075203279,14.69383341,154.41,154.39,18.79181043]
[1749075204889,14.69383341,154.4,154.39,18.933972]
[1749075205199,14.69383341,154.41,154.39,18.933972]
[1749075209295,14.69383341,154.41,154.4,10.46]
[1749075210597,14.69383341,154.41,154.4,50.4]
[1749075212412,14.69383341,154.41,154.4,69.333972]
[1749075214286,14.69383341,154.41,154.4,50.4]
[1749075214491,14.69383341,154.41,154.4,10.46]
[1749075214687,14.69383341,154.41,154.4,50.38]
[1749075234225,14.69383341,154.41,154.4,87.62]
[1749075235329,1.5827,154.45,154.4,87.90432314]
[1749075235530,14.69383341,154.44,154.41,18.933972]
[1749075237244,14.69383341,154.43,154.41,18.933972]
[1749075239426,14.69383341,154.42,154.4,87.62]
[1749075239628,14.69383341,154.41,154.4,106.553972]
[1749075242228,14.69383341,154.41,154.4,47.7]
[1749075242440,14.69383341,154.41,154.4,87.62]
[1749075242617,14.69383341,154.41,154.4,47.7]
[1749075242818,31.02606682,154.41,154.4,47.7]
[1749075243046,31.02606682,154.41,154.4,87.62]
[1749075243344,31.02606682,154.41,154.34,0.14216157]
[1749075243345,31.02606682,154.41,154.33,18.64964886]
[1749075243521,14.69383341,154.34,154.33,18.933972]
[1749075243715,14.69383341,154.34,154.33,58.853972]
[1749075244244,14.69383341,154.34,154.33,29.25181043]
[1749075244421,14.69383341,154.34,154.33,69.17181043]
[1749075244744,14.69383341,154.34,154.33,69.313972]
[1749075247448,14.69383341,154.35,154.33,69.313972]
[1749075249440,14.69383341,154.34,154.33,69.313972]
[1749075250022,14.69383341,154.34,154.33,29.393972]
[1749075250227,14.69383341,154.34,154.33,69.313972]
[1749075250926,14.69383341,154.34,154.33,29.393972]
[1749075251132,14.69383341,154.34,154.33,69.313972]
[1749075256549,14.69383341,154.4,154.33,69.313972]
[1749075256738,14.69383341,154.35,154.33,69.313972]
[1749075258521,14.69383341,154.34,154.33,69.313972]
[1749075259139,14.69383341,154.4,154.33,69.313972]
[1749075259345,14.69383341,154.34,154.33,69.313972]
[1749075261024,14.69383341,154.34,154.33,50.38]
[1749075262351,14.69383341,154.35,154.34,18.64964886]
[1749075264032,5.00977486,154.41,154.34,29.373972]
[1749075264253,14.69383341,154.35,154.34,29.373972]
[1749075264574,1.6384,154.41,154.34,29.373972]
[1749075264757,14.69383341,154.35,154.34,29.373972]
[1749075266448,14.69383341,154.41,154.38,18.64964886]
[1749075266634,14.69383341,154.41,154.4,18.64964886]
[1749075266838,14.69383341,154.42,154.4,18.64964886]
[1749075267137,14.69383341,154.41,154.4,18.64964886]
[1749075267754,14.69383341,154.41,154.39,50.36]
[1749075267953,1.5309,154.45,154.39,69.00964886]
[1749075267954,14.69383341,154.4,154.39,69.00964886]
[1749075268459,1.5309,154.45,154.39,69.00964886]
[1749075268641,14.69383341,154.4,154.39,69.00964886]
[1749075268844,1.5309,154.45,154.39,69.00964886]
[1749075269044,14.69383341,154.41,154.39,69.00964886]
[1749075271057,14.69383341,154.41,154.39,106.24964886]
[1749075273363,14.69383341,154.4,154.39,106.24964886]
[1749075279161,14.69383341,154.41,154.39,106.24964886]
[1749075280271,14.69383341,154.4,154.39,106.24964886]
[1749075285167,30.93336682,154.4,154.39,47.68]
[1749075285554,30.93336682,154.4,154.39,87.56]
[1749075285757,30.93336682,154.4,154.39,47.68]
[1749075285970,30.93336682,154.4,154.39,87.56]
[1749075286679,1.5457,154.4,154.39,87.56]
[1749075286861,30.93336682,154.4,154.39,87.56]
[1749075294080,56.93336682,154.4,154.39,10.44]
[1749075294273,57.07552839,154.4,154.31,18.79181043]
[1749075294482,14.69383341,154.32,154.31,18.933972]
[1749075295085,14.69383341,154.32,154.31,58.813972]
[1749075296478,14.69383341,154.32,154.31,18.933972]
[1749075296683,14.69383341,154.32,154.31,58.813972]
[1749075296887,14.69383341,154.33,154.31,58.813972]
[1749075297989,14.69383341,154.32,154.31,58.813972]
[1749075298763,14.69383341,154.32,154.31,18.933972]
[1749075298963,14.69383341,154.32,154.31,58.813972]
[1749075299384,14.69383341,154.32,154.31,58.52964886]
[1749075300794,14.69383341,154.32,154.28,7.57790752]
[1749075300966,14.69383341,154.29,154.28,18.64964886]
[1749075301163,14.69383341,154.29,154.28,58.52964886]
[1749075301590,14.69383341,154.29,154.28,18.64964886]
[1749075301784,14.69383341,154.29,154.26,0.14216157]
[1749075301984,14.69383341,154.32,154.28,39.88]
[1749075302776,14.69383341,154.32,154.25,0.14216157]
[1749075302980,14.69383341,154.32,154.26,39.88]
[1749075303188,14.69383341,154.27,154.25,0.14216157]
[1749075303488,14.69383341,154.27,154.26,58.52964886]
[1749075304074,14.69383341,154.27,154.26,106.22964886]
[1749075305191,14.69383341,154.27,154.26,47.7]
[1749075305571,14.69383341,154.27,154.26,87.58]
[1749075305886,1.5644,154.29,154.27,18.64964886]
[1749075306191,14.69383341,154.29,154.27,18.64964886]
[1749075307198,14.69383341,154.3,154.27,18.64964886]
[1749075308888,14.69383341,154.29,154.27,18.64964886]
[1749075311582,14.69383341,154.31,154.28,0.28432314]
[1749075311792,14.69383341,154.32,154.3,0.28432314]
[1749075311994,14.69383341,154.33,154.31,50.32]
[1749075312303,1.6049,154.37,154.31,68.96964886]
[1749075312304,14.69383341,154.32,154.31,68.96964886]
[1749075316103,14.69383341,154.34,154.31,68.96964886]
[1749075316384,14.69383341,154.35,154.32,18.64964886]
[1749075316698,14.69383341,154.34,154.32,18.64964886]
[1749075317717,14.69383341,154.35,154.32,18.64964886]
[1749075318719,14.69383341,154.36,154.33,0.28432314]
[1749075318891,1.6049,154.37,154.33,0.28432314]
[1749075318892,16.29873341,154.37,154.33,0.28432314]
[1749075319093,14.69383341,154.37,154.34,18.64964886]
[1749075319297,14.69383341,154.38,154.35,39.88]
[1749075319625,14.69383341,154.37,154.36,10.42]
[1749075320516,14.69383341,154.38,154.36,10.42]
[1749075321791,1.6309,154.41,154.36,10.42]
[1749075321997,14.69383341,154.37,154.36,29.06964886]
[1749075325995,14.69383341,154.37,154.36,10.42]
[1749075327520,14.69383341,154.39,154.37,18.64964886]
[1749075327832,14.69383341,154.39,154.36,29.06964886]
[1749075328003,14.69383341,154.39,154.37,18.64964886]
[1749075329207,14.69383341,154.38,154.37,18.64964886]
[1749075334118,1.6309,154.41,154.37,18.933972]
[1749075334428,14.69383341,154.42,154.38,14.97815655]
[1749075334610,14.69383341,154.43,154.39,58.50964886]
[1749075335123,14.69383341,154.43,154.4,0.28432314]
[1749075335327,1.6116,154.45,154.41,10.42]
[1749075335328,14.69383341,154.44,154.41,10.42]
[1749075335502,14.69383341,154.44,154.42,18.64964886]
[1749075335710,14.69383341,154.44,154.43,39.86]
[1749075338322,14.69383341,154.44,154.41,10.42]
[1749075338511,1.6116,154.45,154.43,39.86]
[1749075338713,14.69383341,154.44,154.41,10.42]
[1749075338926,14.69383341,154.42,154.41,10.42]
[1749075339338,14.69383341,154.42,154.41,50.26]
[1749075351454,1.6116,154.45,154.41,50.26]
[1749075351628,14.69383341,154.42,154.41,50.26]
[1749075367236,1.6116,154.45,154.41,50.26]
[1749075367442,14.69383341,154.42,154.41,50.26]
[1749075367742,148.1,154.47,154.41,50.26]
[1749075367955,14.69383341,154.44,154.41,50.26]
[1749075368371,14.69383341,154.45,154.42,18.933972]
[1749075368949,14.69383341,154.44,154.41,50.26]
[1749075369147,14.69383341,154.42,154.41,50.26]
[1749075369965,14.69383341,154.48,154.41,69.193972]
[1749075370287,14.69383341,154.44,154.42,18.933972]
[1749075370763,14.69383341,154.43,154.42,18.933972]
[1749075373074,14.69383341,154.44,154.42,18.933972]
[1749075374052,14.69383341,154.43,154.42,18.933972]
[1749075376072,14.69383341,154.43,154.4,37.24]
[1749075376259,1.6509,154.47,154.41,50.2]
[1749075376460,14.69383341,154.42,154.41,50.2]
[1749075382076,14.69383341,154.42,154.41,10.38]
[1749075382281,14.69383341,154.42,154.41,50.18]
[1749075382680,14.69383341,154.42,154.41,10.38]
[1749075382884,14.69383341,154.42,154.41,50.18]
[1749075385591,14.69383341,154.42,154.41,69.113972]
[1749075385769,14.69383341,154.43,154.41,69.113972]
[1749075385965,14.69383341,154.43,154.42,18.933972]
[1749075386192,14.69383341,154.45,154.42,18.933972]
[1749075387702,1.6509,154.47,154.42,18.933972]
[1749075387703,14.69383341,154.44,154.42,18.933972]
[1749075388808,14.69383341,154.43,154.42,18.933972]
[1749075389408,14.69383341,154.43,154.41,50.18]
[1749075392200,14.69383341,154.42,154.41,69.113972]
[1749075392791,14.69383341,154.42,154.41,50.18]
[1749075394130,1.6509,154.47,154.42,18.79181043]
[1749075394288,14.69383341,154.45,154.43,0.14216157]
[1749075394995,1.6509,154.47,154.43,0.14216157]
[1749075395210,14.69383341,154.45,154.43,0.14216157]
[1749075396391,14.69383341,154.44,154.43,0.14216157]
[1749075397601,14.69383341,154.45,154.43,0.14216157]
[1749075397806,14.69383341,154.46,154.43,0.14216157]
[1749075398296,14.69383341,154.45,154.43,0.14216157]
[1749075398698,14.69383341,154.46,154.43,0.42648471]
[1749075399009,1.5519,154.51,154.43,0.42648471]
[1749075399010,14.69383341,154.47,154.43,0.42648471]
[1749075400096,14.69383341,154.47,154.43,15.12031812]
[1749075400305,14.69383341,154.48,154.45,0.28432314]
[1749075400495,14.69383341,154.48,154.46,50.18]
[1749075404295,14.69383341,154.47,154.46,72.30798422]
[1749075408391,14.69383341,154.48,154.46,72.30798422]
[1749075408825,14.69383341,154.47,154.46,72.30798422]
[1749075409192,14.69383341,154.48,154.47,18.933972]
[1749075410611,14.69383341,154.48,154.47,56.153972]
[1749075412434,1.5519,154.51,154.47,56.153972]
[1749075412601,14.69383341,154.48,154.47,56.153972]
[1749075413932,1.5519,154.51,154.47,56.153972]
[1749075414097,14.69383341,154.49,154.47,56.153972]
[1749075414300,14.69383341,154.48,154.47,56.153972]
[1749075417025,27.5519,154.51,154.47,56.153972]
[1749075417325,14.69383341,154.49,154.47,56.153972]
[1749075418638,1.5519,154.51,154.47,56.153972]
[1749075418838,14.69383341,154.51,154.47,56.153972]
[1749075419707,14.69383341,154.52,154.48,14.97815655]
[1749075419913,14.69383341,154.52,154.5,0.28432314]
[1749075420120,14.69383341,154.52,154.51,29.313972]
[1749075420331,14.69383341,154.53,154.52,0.28432314]
[1749075420631,14.69383341,154.53,154.52,58.693972]
[1749075420832,14.69383341,154.54,154.52,58.693972]
[1749075421627,1.5535,154.55,154.52,39.76]
[1749075421628,14.69383341,154.53,154.52,39.76]
[1749075422417,14.69383341,154.53,154.51,10.38]
[1749075422636,14.69383341,154.52,154.51,10.38]
[1749075423111,14.69383341,154.52,154.47,37.22]
[1749075423315,14.69383341,154.48,154.45,18.64964886]
[1749075423635,14.69383341,154.46,154.45,18.933972]
[1749075424049,14.69383341,154.46,154.45,66.533972]
[1749075424218,14.69383341,154.46,154.45,47.6]
[1749075424419,14.69383341,154.46,154.45,87.36]
[1749075426952,14.69383341,154.46,154.45,47.6]
[1749075427748,14.69383341,154.46,154.45,87.36]
[1749075429809,14.69383341,154.46,154.45,106.293972]
[1749075432241,1.6499,154.49,154.45,87.64432314]
[1749075432445,14.69383341,154.46,154.45,87.64432314]
[1749075434360,14.69383341,154.46,154.45,87.36]
[1749075436485,14.69383341,154.46,154.45,87.64432314]
[1749075437392,14.69383341,154.47,154.45,87.64432314]
[1749075438086,7.7667,154.53,154.46,18.933972]
[1749075438288,14.69383341,154.49,154.46,18.933972]
[1749075438957,14.69383341,154.5,154.46,18.933972]
[1749075441987,14.69383341,154.5,154.46,33.62780541]
[1749075442389,14.69383341,154.5,154.46,18.933972]
[1749075442604,14.69383341,154.51,154.47,14.97815655]
[1749075442767,1.5416,154.53,154.49,0.28432314]
[1749075442768,14.69383341,154.52,154.49,0.28432314]
[1749075442973,14.69383341,154.52,154.5,50.12]
[1749075443275,14.69383341,154.53,154.51,0.28432314]
[1749075445497,14.69383341,154.53,154.51,18.933972]
[1749075447587,14.69383341,154.53,154.52,37.50432314]
[1749075449579,14.69383341,154.53,154.52,37.22]
[1749075449788,14.69383341,154.53,154.52,76.96]
[1749075450680,14.69383341,154.53,154.52,37.22]
[1749075450880,14.69383341,154.53,154.52,76.96]
[1749075453281,8.0194,154.57,154.52,76.96]
[1749075453701,14.69383341,154.53,154.52,76.96]
[1749075453912,8.0194,154.57,154.52,76.96]
[1749075454087,14.69383341,154.54,154.52,76.96]
[1749075454707,14.69383341,154.55,154.53,0.28432314]
[1749075455392,14.69383341,154.54,154.53,0.28432314]
[1749075455577,6.6236,154.61,154.53,41.49003607]
[1749075455778,14.69383341,154.58,154.56,0.28432314]
[1749075455989,14.69383341,154.58,154.57,50.1]
[1749075456986,14.69383341,154.59,154.57,50.1]
[1749075458299,26.0,154.64,154.58,0.28432314]
[1749075458505,14.69383341,154.6,154.58,0.28432314]
[1749075459388,14.69383341,154.59,154.58,0.28432314]
[1749075459828,26.0,154.64,154.58,0.28432314]
[1749075460003,14.69383341,154.6,154.58,0.28432314]
[1749075460708,40.69383341,154.64,154.58,0.28432314]
[1749075460709,14.69383341,154.59,154.58,0.28432314]
[1749075461102,14.69383341,154.59,154.54,0.14216157]
[1749075461303,1.5793,154.6,154.58,10.36]
[1749075461490,1.5793,154.6,154.59,39.72]
[1749075462087,1.5793,154.6,154.58,10.36]
[1749075462416,1.5793,154.6,154.59,39.72]
[1749075462619,22.63483341,154.6,154.58,10.36]
[1749075462909,29.38766682,154.59,154.52,37.22]
[1749075463122,14.69383341,154.56,154.53,50.08]
[1749075463291,33.941,154.6,154.53,50.08]
[1749075464213,14.69383341,154.54,154.53,10.36]
[1749075464417,14.69383341,154.54,154.53,50.08]
[1749075465337,14.69383341,154.54,154.53,10.36]
[1749075465524,14.69383341,154.54,154.53,50.08]
[1749075466410,14.69383341,154.54,154.53,10.36]
[1749075466737,14.69383341,154.54,154.53,50.08]
[1749075466930,33.941,154.6,154.53,50.08]
[1749075467236,14.69383341,154.54,154.53,50.08]
[1749075472944,14.69383341,154.55,154.53,50.08]
[1749075474422,1.5793,154.6,154.53,69.013972]
[1749075474423,14.69383341,154.54,154.53,69.013972]
[1749075477535,27.5793,154.6,154.53,69.013972]
[1749075477733,14.69383341,154.55,154.53,69.013972]
[1749075478772,1.5091,154.5,154.46,5.25001859]
[1749075478925,40.69383341,154.47,154.45,39.88]
[1749075479257,26.0,154.44,154.43,10.34]
[1749075479422,40.69383341,154.44,154.43,50.22]
[1749075479622,40.69383341,154.44,154.43,10.34]
[1749075479822,40.69383341,154.44,154.36,0.14216157]
[1749075479823,1.5091,154.43,154.36,0.14216157]
[1749075480130,14.69383341,154.39,154.37,39.88]
[1749075480339,14.69383341,154.39,154.38,58.69181043]
[1749075480542,14.69383341,154.39,154.38,58.833972]
[1749075481427,27.5091,154.43,154.38,58.833972]
[1749075481738,14.69383341,154.39,154.38,58.833972]
[1749075484049,14.69383341,154.39,154.38,106.393972]
[1749075484867,27.5091,154.43,154.38,106.393972]
[1749075485165,14.69383341,154.4,154.38,106.393972]
[1749075485828,14.69383341,154.39,154.38,106.393972]
[1749075486248,14.69383341,154.4,154.38,106.393972]
[1749075486646,14.69383341,154.4,154.39,18.933972]
[1749075489252,14.69383341,154.4,154.38,87.46]
[1749075489448,14.69383341,154.39,154.38,47.56]
[1749075489648,14.69383341,154.39,154.38,87.44]
[1749075490478,14.69383341,154.39,154.38,47.56]
[1749075490655,14.69383341,154.39,154.38,87.46]
[1749075491184,27.5091,154.43,154.38,87.46]
[1749075491652,14.69383341,154.41,154.38,87.46]
[1749075492853,14.69383341,154.4,154.39,18.933972]
[1749075493146,14.69383341,154.41,154.39,18.933972]
[1749075493898,14.69383341,154.4,154.39,18.933972]
[1749075496183,27.5091,154.43,154.39,18.933972]
[1749075496368,14.69383341,154.4,154.39,18.933972]
[1749075498158,14.69383341,154.4,154.39,29.293972]
[1749075499269,14.69383341,154.4,154.39,10.36]
[1749075499589,14.69383341,154.4,154.39,50.22]
[1749075500289,14.69383341,154.4,154.39,10.36]
[1749075500475,29.38766682,154.4,154.39,10.36]
[1749075500678,29.38766682,154.4,154.39,50.22]
[1749075502201,29.38766682,154.4,154.39,10.36]
[1749075502419,29.38766682,154.4,154.39,50.22]
[1749075502778,14.69383341,154.4,154.39,50.22]
[1749075505180,1.5091,154.43,154.39,69.153972]
[1749075505396,14.69383341,154.42,154.39,69.153972]
[1749075506487,14.69383341,154.42,154.4,18.933972]
[1749075507823,14.69383341,154.44,154.4,18.933972]
[1749075508282,14.69383341,154.44,154.4,33.62780541]
[1749075509298,14.69383341,154.43,154.4,44.933972]
[1749075511704,14.69383341,154.44,154.4,44.933972]
[1749075512433,14.69383341,154.44,154.4,59.62780541]
[1749075512711,14.69383341,154.46,154.44,18.933972]
[1749075512898,14.69383341,154.46,154.45,50.22]
[1749075513902,14.69383341,154.47,154.45,50.22]
[1749075514415,14.69383341,154.46,154.45,69.153972]
[1749075515290,14.69383341,154.46,154.45,10.42]
[1749075515509,14.69383341,154.46,154.45,50.2]
[1749075520020,14.69383341,154.46,154.45,50.16]
[1749075530212,14.69383341,154.48,154.45,50.16]
[1749075533612,14.69383341,154.48,154.46,18.933972]
[1749075533804,14.69383341,154.49,154.46,18.933972]
[1749075534217,14.69383341,154.48,154.46,18.933972]
[1749075535324,14.69383341,154.47,154.46,18.933972]
[1749075535923,14.69383341,154.48,154.46,18.933972]
[1749075536303,1.5888,154.46,154.43,37.22]
[1749075536540,1.5888,154.46,154.44,50.2]
[1749075536739,1.5888,154.46,154.45,10.36]
[1749075537037,1.5888,154.46,154.38,26.0]
[1749075537621,14.69383341,154.39,154.38,44.933972]
[1749075537947,14.69383341,154.39,154.38,84.773972]
[1749075539459,14.69383341,154.39,154.38,39.82]
[1749075540458,14.69383341,154.39,154.38,58.753972]
[1749075541466,14.69383341,154.41,154.39,18.933972]
[1749075541834,14.69383341,154.4,154.39,18.933972]
[1749075542068,14.69383341,154.43,154.39,18.933972]
[1749075542445,14.69383341,154.42,154.39,44.933972]
[1749075544047,14.69383341,154.42,154.41,18.933972]
[1749075544745,14.69383341,154.42,154.4,47.58]